bitfinex/quotes_BTCUSD_20220103
["timestamp","ask_amount","ask_price","bid_price","bid_amount"]
[1641234951534,1.71976277,46625.0,46621.0,0.36994068]
[1641234953534,1.71976277,46625.0,46621.0,0.26268068]
[1641234954894,2.55418127,46625.0,46621.0,0.26268068]
[1641234957196,1.71976277,46625.0,46621.0,0.26268068]
[1641234957837,0.60543326,46622.0,46621.0,0.053628]
[1641234958235,2.55418127,46625.0,46621.0,0.053628]
[1641234958835,2.55418127,46625.0,46621.0,0.273628]
[1641234959437,1.71976277,46625.0,46621.0,0.273628]
[1641234959637,1.71976277,46625.0,46622.0,0.26276618]
[1641234960036,1.71976277,46625.0,46621.0,0.22]
[1641234960438,0.05,46624.0,46621.0,0.22]
[1641234961405,0.049331,46623.0,46621.0,0.22]
[1641234961599,0.302971,46623.0,46621.0,0.22]
[1641234961797,0.00124256,46622.0,46621.0,0.22]
[1641234961998,1.57934256,46622.0,46621.0,0.22]
[1641234962397,1.68403654,46622.0,46621.0,0.22]
[1641234962800,2.51845504,46622.0,46621.0,0.22]
[1641234963200,1.13845504,46622.0,46621.0,0.22]
[1641234964300,0.30403654,46622.0,46621.0,0.22]
[1641234964502,0.30403654,46622.0,46621.0,0.21]
[1641234965140,0.08521191,46622.0,46621.0,0.21]
[1641234966536,0.03051793,46622.0,46621.0,0.21]
[1641234968339,2.66145327,46625.0,46621.0,0.21]
[1641234968340,0.05,46624.0,46621.0,0.21]
[1641234968741,0.60157303,46622.0,46621.0,0.21]
[1641234969389,0.65157303,46624.0,46621.0,0.21]
[1641234970191,0.60157303,46624.0,46622.0,0.26138023]
[1641234971396,0.60157303,46626.0,46623.0,0.23773938]
[1641234971990,0.60157303,46626.0,46624.0,0.053625]
[1641234972191,0.2901,46633.0,46625.0,0.2678137]
[1641234972192,2.80707938,46628.0,46625.0,0.2678137]
[1641234972936,2.80707938,46628.0,46623.0,0.23817938]
[1641234973639,0.60157303,46627.0,46623.0,0.29180538]
[1641234974638,0.60157303,46627.0,46623.0,0.34542875]
[1641234974837,0.60157303,46627.0,46623.0,0.34180538]
[1641234975138,0.60157303,46627.0,46625.0,0.053623]
[1641234975339,2.20550635,46628.0,46625.0,0.053623]
[1641234975740,2.20550635,46628.0,46623.0,0.28817938]
[1641234975942,2.20550635,46628.0,46623.0,0.00044]
[1641234976142,2.25550635,46628.0,46623.0,0.00044]
[1641234976809,2.85707938,46628.0,46623.0,0.00044]
[1641234977207,0.053634,46627.0,46623.0,0.00044]
[1641234977509,0.65157303,46626.0,46623.0,0.00044]
[1641234978306,0.70520703,46626.0,46623.0,0.00044]
[1641234978512,0.75884203,46626.0,46623.0,0.00044]
[1641234979412,0.60157303,46625.0,46623.0,0.00044]
[1641234979807,0.60157303,46626.0,46623.0,0.00044]
[1641234980248,0.65157303,46626.0,46623.0,0.00044]
[1641234980450,0.05,46626.0,46623.0,0.00044]
[1641234980651,0.65157303,46627.0,46623.0,0.00044]
[1641234981248,0.60157303,46627.0,46623.0,0.00044]
[1641234982448,2.20550635,46628.0,46623.0,0.00044]
[1641234982750,2.20550635,46628.0,46623.0,0.054066]
[1641234984990,0.8344185,46627.0,46623.0,0.054066]
[1641234985791,0.8344185,46627.0,46623.0,0.10769063]
[1641234986390,0.60306378,46624.0,46623.0,0.10769063]
[1641234986689,0.60306378,46624.0,46623.0,0.32209627]
[1641234986892,0.8344185,46627.0,46623.0,0.32209627]
[1641234988650,0.8344185,46627.0,46625.0,0.053624]
[1641234989456,3.03992485,46628.0,46623.0,0.05406463]
[1641234989654,3.03992485,46628.0,46623.0,0.00044]
[1641234990051,3.03992485,46628.0,46623.0,0.054066]
[1641234990251,3.03992485,46628.0,46624.0,0.26079307]
[1641234990651,3.08992485,46628.0,46624.0,0.26079307]
[1641234991252,0.8344185,46627.0,46624.0,0.26079307]
[1641234991700,0.8344185,46627.0,46623.0,0.054066]
[1641234992601,0.8344185,46627.0,46623.0,0.00044]
[1641234993803,0.8344185,46627.0,46623.0,0.27522676]
[1641234995545,0.8344185,46627.0,46623.0,0.32885276]
[1641234996947,0.8344185,46627.0,46623.0,0.38247681]
[1641234997150,0.8344185,46627.0,46625.0,0.053625]
[1641234997751,3.03992485,46628.0,46623.0,0.05406405]
[1641234997951,3.03992485,46628.0,46623.0,0.00044]
[1641234998906,0.8344185,46627.0,46623.0,0.00044]
[1641235000307,0.8344185,46626.0,46623.0,0.00044]
[1641235001507,0.8344185,46626.0,46623.0,0.26287102]
[1641235001709,0.8844185,46626.0,46623.0,0.26287102]
[1641235002510,0.05,46626.0,46623.0,0.26287102]
[1641235002750,0.8844185,46627.0,46623.0,0.26287102]
[1641235003748,0.60371543,46624.0,46623.0,0.26287102]
[1641235003947,0.65371543,46624.0,46623.0,0.26287102]
[1641235004149,0.05,46624.0,46623.0,0.26287102]
[1641235004349,0.8344185,46627.0,46623.0,0.26287102]
[1641235004548,0.8344185,46627.0,46623.0,0.00044]
[1641235005153,0.83568889,46627.0,46623.0,0.00044]
[1641235005451,0.8344185,46626.0,46623.0,0.00044]
[1641235005648,0.8844185,46626.0,46623.0,0.00044]
[1641235006048,0.05,46626.0,46623.0,0.00044]
[1641235006250,0.107282,46625.0,46623.0,0.00044]
[1641235006697,0.26820612,46625.0,46623.0,0.00044]
[1641235007095,1.21122324,46624.0,46623.0,0.00044]
[1641235007695,1.25932324,46624.0,46623.0,0.00044]
[1641235010359,1.25932324,46624.0,46621.0,0.20857603]
[1641235010561,0.10728,46623.0,46621.0,0.20857603]
[1641235010764,0.20901916,46623.0,46621.0,0.20857603]
[1641235010960,0.05,46622.0,46621.0,0.20857603]
[1641235012366,1.26122324,46622.0,46621.0,0.20857603]
[1641235016902,0.05,46622.0,46621.0,0.20857603]
[1641235017502,1.26137728,46622.0,46621.0,0.20857603]
[1641235018443,1.51069205,46622.0,46621.0,0.20857603]
[1641235018951,1.56538603,46622.0,46621.0,0.20857603]
[1641235019943,1.36538603,46622.0,46621.0,0.20857603]
[1641235020545,1.56538603,46622.0,46621.0,0.20857603]
[1641235021404,1.36538603,46622.0,46621.0,0.20857603]
[1641235027852,0.15400875,46622.0,46621.0,0.20857603]
[1641235028256,0.35400875,46622.0,46621.0,0.20857603]
[1641235029393,1.35555369,46622.0,46621.0,0.20857603]
[1641235029594,1.45555369,46622.0,46621.0,0.14776603]
[1641235029791,1.45555369,46622.0,46621.0,0.11776603]
[1641235029792,1.47383369,46622.0,46621.0,0.11776603]
[1641235030090,2.48383369,46622.0,46621.0,0.08776603]
[1641235030290,3.12731369,46622.0,46617.0,0.00788916]
[1641235030491,1.80660519,46618.0,46617.0,0.00788916]
[1641235030698,2.08825319,46618.0,46617.0,0.00788916]
[1641235030896,2.13825319,46618.0,46617.0,0.00788916]
[1641235031495,3.34985105,46618.0,46617.0,0.00788916]
[1641235032092,3.84985105,46618.0,46617.0,0.00788916]
[1641235032294,3.84985105,46618.0,46613.0,0.00011]
[1641235032493,1.05524136,46614.0,46613.0,0.00011]
[1641235032748,1.53667004,46614.0,46613.0,0.0079447]
[1641235032951,1.63667004,46614.0,46613.0,0.0079447]
[1641235034148,1.63667004,46614.0,46613.0,0.0164777]
[1641235034349,1.63667004,46614.0,46613.0,0.008643]
[1641235035851,1.73667004,46614.0,46613.0,0.008643]
[1641235036054,1.73667004,46614.0,46612.0,0.00022]
[1641235036055,1.96672486,46614.0,46612.0,0.00022]
[1641235036418,1.90096232,46613.0,46611.0,0.00022]
[1641235036614,0.2,46611.0,46603.0,0.0075053]
[1641235036813,0.8566464,46606.0,46603.0,0.0073953]
[1641235037015,1.99660299,46604.0,46603.0,0.0073953]
[1641235037215,0.90470299,46604.0,46603.0,0.0073953]
[1641235037413,1.8314384,46604.0,46603.0,0.0073953]
[1641235037613,1.8814384,46604.0,46603.0,0.0073953]
[1641235037814,1.55470299,46604.0,46603.0,0.0073953]
[1641235038213,0.75470299,46604.0,46603.0,0.0073953]
[1641235038413,1.0447648,46604.0,46603.0,0.0159283]
[1641235038717,0.75470299,46604.0,46603.0,0.0159283]
[1641235039817,1.03448023,46604.0,46603.0,0.0159283]
[1641235041540,1.03448023,46604.0,46603.0,0.2359283]
[1641235041541,1.13448023,46604.0,46603.0,0.2359283]
[1641235042545,1.33448023,46604.0,46603.0,0.2359283]
[1641235042947,1.93565039,46604.0,46603.0,0.2359283]
[1641235046603,1.93565039,46604.0,46602.0,0.007434]
[1641235046604,0.2001017,46603.0,46602.0,0.007434]
[1641235046805,1.00484302,46603.0,46601.0,0.00211]
[1641235047104,2.75120058,46602.0,46600.0,0.00033]
[1641235047304,0.20123865,46600.0,46598.0,0.00022]
[1641235047505,2.90894427,46599.0,46598.0,0.00011]
[1641235047771,0.2,46597.0,46596.0,0.00011]
[1641235047970,1.77845852,46597.0,46596.0,0.00011]
[1641235048175,1.97845852,46597.0,46596.0,0.00011]
[1641235048370,1.97845852,46597.0,46593.0,0.00044]
[1641235048371,0.94,46596.0,46593.0,0.00044]
[1641235048573,2.38697398,46596.0,46595.0,0.008863]
[1641235049772,0.55,46595.0,46594.0,0.00011]
[1641235050077,2.37441608,46595.0,46594.0,0.00011]
[1641235050673,3.58664304,46595.0,46594.0,0.00011]
[1641235050872,4.18734304,46595.0,46594.0,0.00011]
[1641235051273,4.18734304,46595.0,46594.0,0.22011]
[1641235051497,4.35547535,46595.0,46594.0,0.22011]
[1641235052693,4.35547535,46595.0,46594.0,0.228643]
[1641235053093,4.00547535,46595.0,46594.0,0.228643]
[1641235055851,5.51717489,46595.0,46594.0,0.228643]
[1641235057053,6.01717489,46595.0,46594.0,0.228643]
[1641235058452,6.01717489,46595.0,46594.0,0.226643]
[1641235060616,3.29324839,46595.0,46594.0,0.226643]
[1641235060818,3.29324839,46595.0,46591.0,0.01016513]
[1641235060819,3.29324839,46595.0,46592.0,0.00022]
[1641235061015,0.2,46592.0,46591.0,0.01016513]
[1641235061216,1.84695095,46592.0,46591.0,0.01016513]
[1641235061415,1.94695095,46592.0,46591.0,0.01016513]
[1641235061615,1.94695095,46592.0,46591.0,0.01869813]
[1641235061815,1.64697398,46592.0,46591.0,0.02723213]
[1641235062316,1.64439093,46592.0,46591.0,0.019397]
[1641235064154,0.46,46591.0,46590.0,0.00033]
[1641235064352,1.26314616,46591.0,46590.0,0.00033]
[1641235064556,1.26314616,46591.0,46589.0,0.00011]
[1641235064557,1.36835586,46591.0,46589.0,0.00011]
[1641235064755,0.6629253,46590.0,46588.0,0.0001]
[1641235064953,0.74627398,46589.0,46588.0,0.0001]
[1641235065157,0.84627398,46589.0,46588.0,0.0001]
[1641235065355,1.62434591,46589.0,46588.0,0.0001]
[1641235065555,1.62434591,46589.0,46588.0,0.008633]
[1641235065856,1.67803491,46589.0,46588.0,0.008633]
[1641235066057,3.32956065,46589.0,46588.0,0.008093]
[1641235066257,2.59477035,46589.0,46588.0,0.008093]
[1641235066510,2.59477035,46589.0,46587.0,0.00022]
[1641235066511,1.43741695,46588.0,46587.0,0.00022]
[1641235066710,1.5956038,46588.0,46587.0,0.00022]
[1641235067009,1.7008135,46588.0,46587.0,0.00022]
[1641235067413,1.06,46587.0,46586.0,0.00011]
[1641235067610,3.25936914,46587.0,46586.0,0.00011]
[1641235067810,3.26457884,46587.0,46586.0,0.00011]
[1641235068110,1.06741695,46586.0,46585.0,0.00033]
[1641235068312,1.85992824,46586.0,46585.0,0.00033]
[1641235068512,2.01513794,46586.0,46585.0,0.00033]
[1641235069213,2.51513794,46586.0,46585.0,0.00033]
[1641235069414,0.36,46585.0,46581.0,0.00244]
[1641235069614,0.81143696,46583.0,46581.0,0.00244]
[1641235069817,1.78317671,46583.0,46581.0,0.00244]
[1641235070013,1.88317671,46583.0,46581.0,0.00244]
[1641235070448,2.07082791,46583.0,46581.0,0.00244]
[1641235070676,2.07082791,46583.0,46575.0,0.0003]
[1641235070677,2.12082791,46583.0,46575.0,0.0003]
[1641235070848,0.05469398,46578.0,46575.0,0.0003]
[1641235071050,0.05469398,46576.0,46575.0,0.0003]
[1641235071250,0.10279398,46576.0,46575.0,0.0003]
[1641235073149,1.31546916,46576.0,46575.0,0.0003]
[1641235073352,1.31546916,46576.0,46572.0,0.00022]
[1641235073551,0.05469398,46573.0,46570.0,0.41470552]
[1641235073750,0.05469398,46571.0,46570.0,0.41470552]
[1641235074004,0.10279398,46571.0,46570.0,0.41470552]
[1641235074805,0.20443246,46571.0,46570.0,0.42323852]
[1641235075023,1.41710764,46571.0,46570.0,0.41823852]
[1641235075205,1.03963503,46571.0,46570.0,0.41823852]
[1641235077307,0.20443246,46571.0,46570.0,0.41823852]
[1641235077511,1.41710888,46571.0,46570.0,0.41823852]
[1641235082295,0.20443246,46571.0,46570.0,0.41823852]
[1641235082494,1.0393439,46571.0,46570.0,0.41823852]
[1641235086559,0.20443246,46571.0,46570.0,0.41823852]
[1641235086760,1.40938414,46571.0,46570.0,0.41823852]
[1641235087158,1.40679996,46571.0,46570.0,0.41823852]
[1641235087361,0.20184828,46571.0,46570.0,0.41823852]
[1641235088999,0.0481,46571.0,46570.0,0.41823852]
[1641235089205,0.09654162,46571.0,46570.0,0.41823852]
[1641235090204,0.053702,46568.0,46559.0,0.00120016]
[1641235090507,0.053702,46568.0,46557.0,0.00124]
[1641235090508,0.10750184,46568.0,46557.0,0.00124]
[1641235090803,0.05379984,46568.0,46557.0,0.00124]
[1641235091001,0.00379984,46568.0,46558.0,0.09620015]
[1641235091200,0.00379984,46568.0,46558.0,7.769e-05]
[1641235091402,2.05977727,46566.0,46560.0,0.1939162]
[1641235091703,2.16348127,46566.0,46560.0,0.1939162]
[1641235092104,2.16348127,46566.0,46560.0,0.19201544]
[1641235092302,2.16348127,46566.0,46560.0,0.1880128]
[1641235092502,0.053704,46565.0,46560.0,0.1880128]
[1641235092941,0.053704,46565.0,46558.0,0.00861069]
[1641235093543,0.053705,46563.0,46558.0,0.00861069]
[1641235096807,0.053706,46562.0,46558.0,0.00861069]
[1641235097704,0.05,46563.0,46558.0,0.00861069]
[1641235097903,2.10977727,46566.0,46558.0,0.00861069]
[1641235098105,2.10977727,46566.0,46560.0,0.24242956]
[1641235098508,2.10977727,46566.0,46558.0,0.00861069]
[1641235098509,0.053704,46565.0,46558.0,0.00861069]
[1641235099405,0.053704,46563.0,46558.0,0.00861069]
[1641235099704,0.10213875,46563.0,46558.0,0.00861069]
[1641235100167,0.15213875,46563.0,46558.0,0.00861069]
[1641235100356,0.14955426,46563.0,46558.0,0.00861069]
[1641235101758,0.0001,46560.0,46558.0,0.00861069]
[1641235102962,0.053808,46560.0,46558.0,0.00861069]
[1641235105596,0.107519,46560.0,46558.0,0.00861069]
[1641235106800,0.05189984,46559.0,46558.0,0.00861069]
[1641235107199,0.3881,46559.0,46558.0,0.00861069]
[1641235107402,0.0481,46559.0,46558.0,0.00861069]
[1641235107667,0.05189984,46559.0,46558.0,0.00861069]
[1641235108456,0.10034146,46559.0,46558.0,0.00861069]
[1641235108859,0.30034146,46559.0,46558.0,0.00861069]
[1641235109059,0.52891921,46559.0,46558.0,0.00861069]
[1641235109261,0.89891921,46559.0,46558.0,0.00861069]
[1641235109459,0.10034146,46559.0,46558.0,0.00861069]
[1641235109859,0.98877484,46559.0,46558.0,0.00861069]
[1641235110060,0.69572076,46559.0,46558.0,0.00861069]
[1641235110259,0.77603272,46559.0,46558.0,0.00861069]
[1641235110463,0.97603272,46559.0,46558.0,0.00861069]
[1641235111508,1.07603272,46559.0,46558.0,0.00861069]
[1641235111910,0.78034146,46559.0,46558.0,0.00861069]
[1641235112109,1.07112489,46559.0,46558.0,0.00861069]
[1641235113412,0.40034146,46559.0,46558.0,0.00861069]
[1641235114212,1.2609942,46559.0,46558.0,0.00861069]
[1641235114413,0.77034146,46559.0,46558.0,0.00861069]
[1641235114812,0.20034146,46559.0,46558.0,0.00861069]
[1641235115259,0.56034146,46559.0,46558.0,0.00861069]
[1641235115459,0.66034146,46559.0,46558.0,0.00861069]
[1641235115662,0.20034146,46559.0,46558.0,0.00861069]
[1641235116167,0.5481,46559.0,46558.0,0.00661673]
[1641235116365,0.0481,46559.0,46558.0,0.00661673]
[1641235116762,0.05189984,46559.0,46558.0,0.00661673]
[1641235117062,0.0948565,46559.0,46558.0,0.00661673]
[1641235117463,0.09105666,46559.0,46558.0,0.00661673]
[1641235117662,0.0481,46559.0,46558.0,0.00661673]
[1641235117862,0.0857743,46559.0,46558.0,0.00661673]
[1641235118063,0.0481,46559.0,46558.0,0.00661673]
[1641235118262,0.0966755,46559.0,46558.0,0.00661673]
[1641235118665,0.0481,46559.0,46558.0,0.00661673]
[1641235121113,0.08583615,46560.0,46558.0,0.00661673]
[1641235121315,0.04066334,46560.0,46558.0,0.00661673]
[1641235121519,0.04567991,46559.0,46558.0,0.00661673]
[1641235121714,0.0001,46560.0,46558.0,0.00661673]
[1641235122113,0.04258582,46560.0,46558.0,0.00661673]
[1641235122313,0.0001,46560.0,46558.0,0.00661673]
[1641235123373,0.0001,46560.0,46559.0,0.93752483]
[1641235123974,0.0001,46560.0,46559.0,0.23752483]
[1641235127206,0.04854162,46560.0,46559.0,0.23752483]
[1641235128608,0.04854162,46560.0,46558.0,0.06031473]
[1641235128820,0.04844162,46559.0,46558.0,0.06031473]
[1641235129610,0.04844162,46559.0,46558.0,0.00661673]
[1641235133370,0.0001,46560.0,46558.0,0.00661673]
[1641235133571,0.0001,46560.0,46559.0,0.733695]
[1641235133769,0.0001,46560.0,46559.0,0.404011]
[1641235134012,0.59345528,46566.0,46565.0,0.30497979]
[1641235134207,0.0148925,46566.0,46565.0,0.72338516]
[1641235134409,0.0148925,46566.0,46565.0,0.90293719]
[1641235134612,0.0148925,46566.0,46565.0,1.25325319]
[1641235135509,0.0148925,46566.0,46565.0,1.07370116]
[1641235135909,0.0148925,46566.0,46565.0,0.72338516]
[1641235137012,0.01869234,46566.0,46565.0,0.41840537]
[1641235138052,0.01869234,46566.0,46563.0,0.24314062]
[1641235138254,0.04844162,46564.0,46562.0,0.053694]
[1641235138454,2.63335014,46567.0,46562.0,0.053694]
[1641235138859,0.03421363,46566.0,46562.0,0.053694]
[1641235139060,2.63335014,46567.0,46560.0,0.06165291]
[1641235139262,0.00379984,46563.0,46560.0,0.06165291]
[1641235139461,0.00379984,46563.0,46560.0,0.00795791]
[1641235140163,0.00379984,46561.0,46558.0,0.01944988]
[1641235140363,0.03373861,46566.0,46558.0,0.07314888]
[1641235140564,0.03373861,46566.0,46558.0,0.01944988]
[1641235140965,0.00379984,46559.0,46558.0,0.01944988]
[1641235141618,0.05224146,46559.0,46558.0,0.01944988]
[1641235142218,0.04844162,46559.0,46558.0,0.01944988]
[1641235142623,0.05224146,46559.0,46558.0,0.01951178]
[1641235144623,0.04844162,46559.0,46558.0,0.01951178]
[1641235146056,0.05224146,46559.0,46558.0,0.01951178]
[1641235146657,0.0496563,46559.0,46558.0,0.01951178]
[1641235147460,0.14136922,46559.0,46558.0,0.01951178]
[1641235148461,0.18946922,46559.0,46558.0,0.01951178]
[1641235148761,0.98946922,46559.0,46558.0,0.01951178]
[1641235149415,0.98946922,46559.0,46558.0,0.02804578]
[1641235149816,0.18946922,46559.0,46558.0,0.02804578]
[1641235150016,0.78572976,46559.0,46558.0,0.02804578]
[1641235150817,0.18946922,46559.0,46558.0,0.02804578]
[1641235151414,0.78436983,46559.0,46558.0,0.02804578]
[1641235151816,1.07944907,46559.0,46558.0,0.02804578]
[1641235152661,0.48454846,46559.0,46558.0,0.02804578]
[1641235153656,0.90946922,46559.0,46558.0,0.02804578]
[1641235154454,1.2061115,46559.0,46558.0,0.02804578]
[1641235154657,1.4061115,46559.0,46558.0,0.02804578]
[1641235154856,0.90946922,46559.0,46558.0,0.02804578]
[1641235155055,1.20735577,46559.0,46558.0,0.02804578]
[1641235155257,1.40735577,46559.0,46558.0,0.02804578]
[1641235156056,1.20735577,46559.0,46558.0,0.02804578]
[1641235156705,1.30735577,46559.0,46558.0,0.02804578]
[1641235157107,1.20735577,46559.0,46558.0,0.02804578]
[1641235157307,1.40735577,46559.0,46558.0,0.02787578]
[1641235157507,2.3422862,46559.0,46558.0,0.02787578]
[1641235158606,1.50735577,46559.0,46558.0,0.02787578]
[1641235158908,2.69311619,46559.0,46558.0,0.02787578]
[1641235159108,3.29381619,46559.0,46558.0,0.02787578]
[1641235159308,3.09381619,46559.0,46558.0,0.02787578]
[1641235159507,2.79592964,46559.0,46558.0,0.02787578]
[1641235159911,1.61016922,46559.0,46558.0,0.02787578]
[1641235160167,2.44213853,46559.0,46558.0,0.02787578]
[1641235160760,2.79552272,46559.0,46558.0,0.02787578]
[1641235160965,2.99552272,46559.0,46558.0,0.02787578]
[1641235161162,2.64214211,46559.0,46558.0,0.02787578]
[1641235161467,2.73496479,46559.0,46558.0,0.02787578]
[1641235161665,1.9029919,46559.0,46558.0,0.02787578]
[1641235161862,3.0882138,46559.0,46558.0,0.02787578]
[1641235162061,3.7316938,46559.0,46558.0,0.02787578]
[1641235162662,3.7316938,46559.0,46558.0,0.02125905]
[1641235163664,3.7316938,46559.0,46558.0,0.02979205]
[1641235163921,3.8316938,46559.0,46558.0,0.02979205]
[1641235164125,3.8316938,46559.0,46557.0,0.00113]
[1641235164126,1.25,46558.0,46557.0,0.00113]
[1641235164323,1.25,46558.0,46556.0,0.00022]
[1641235164324,0.93,46557.0,46556.0,0.00022]
[1641235164524,0.5,46553.0,46538.0,0.00044]
[1641235164724,2.07552683,46553.0,46552.0,0.00011]
[1641235164926,2.27552683,46553.0,46552.0,0.00011]
[1641235165124,2.77552683,46553.0,46552.0,0.00011]
[1641235165525,4.06821653,46553.0,46552.0,0.00011]
[1641235165727,1.25,46551.0,46550.0,0.00022]
[1641235165926,1.53943326,46551.0,46550.0,0.00011]
[1641235166134,1.53943326,46551.0,46546.0,0.00044]
[1641235166135,1.73943326,46551.0,46546.0,0.00044]
[1641235166329,0.00124802,46545.0,46536.0,0.4925]
[1641235166529,0.00504237,46537.0,46536.0,0.4925]
[1641235166727,0.09899883,46537.0,46536.0,0.4925]
[1641235167324,0.14899883,46537.0,46536.0,0.4925]
[1641235167524,0.14899883,46537.0,46536.0,0.501033]
[1641235167769,0.20274083,46537.0,46536.0,0.501033]
[1641235168368,0.40274083,46537.0,46536.0,0.501033]
[1641235168572,0.76315268,46537.0,46536.0,0.501033]
[1641235168774,0.47073083,46537.0,46536.0,0.501033]
[1641235170075,0.57073083,46537.0,46536.0,0.501033]
[1641235170275,0.55274083,46537.0,46536.0,0.501033]
[1641235171073,1.15344083,46537.0,46536.0,0.501033]
[1641235171924,0.95344083,46537.0,46536.0,0.501033]
[1641235172626,1.45344083,46537.0,46536.0,0.501033]
[1641235173024,1.65344083,46537.0,46536.0,0.501033]
[1641235173226,1.65344083,46537.0,46536.0,0.49539491]
[1641235174227,1.45344083,46537.0,46536.0,0.49539491]
[1641235175269,0.95344083,46537.0,46536.0,0.49539491]
[1641235175775,0.7521983,46537.0,46536.0,0.49539491]
[1641235175971,0.7521983,46537.0,46536.0,0.7700463]
[1641235175972,0.0977563,46537.0,46536.0,0.7700463]
[1641235176169,0.09395646,46537.0,46536.0,0.7700463]
[1641235176769,0.09395646,46537.0,46536.0,0.99146348]
[1641235177171,0.09395646,46537.0,46536.0,1.34177948]
[1641235177570,0.14395646,46537.0,46536.0,1.34177948]
[1641235177970,0.0981,46537.0,46536.0,1.34177948]
[1641235178470,0.13810183,46537.0,46536.0,0.84571091]
[1641235178670,0.0981,46537.0,46536.0,0.49539491]
[1641235179118,0.10189984,46537.0,46536.0,0.49539491]
[1641235179416,0.1477563,46537.0,46536.0,0.49539491]
[1641235180116,0.14395646,46537.0,46536.0,0.49539491]
[1641235180317,0.1477563,46537.0,46536.0,0.49539491]
[1641235181118,0.1977563,46537.0,46536.0,0.49539491]
[1641235182320,0.1977563,46537.0,46536.0,0.48686191]
[1641235183167,0.1477563,46537.0,46536.0,0.48686191]
[1641235185565,0.1477563,46537.0,46536.0,0.49539491]
[1641235186421,0.1977563,46537.0,46536.0,0.49539491]
[1641235186624,1.29479441,46537.0,46536.0,0.49539491]
[1641235187223,0.79975329,46537.0,46536.0,0.49539491]
[1641235187423,0.85348929,46537.0,46536.0,0.49539491]
[1641235188424,1.03645981,46537.0,46536.0,0.49539491]
[1641235188632,1.32786047,46537.0,46536.0,0.49539491]
[1641235188825,1.42786047,46537.0,46536.0,0.49539491]
[1641235189025,1.24488995,46537.0,46536.0,0.49539491]
[1641235189227,0.95090291,46537.0,46536.0,0.49539491]
[1641235190976,1.78118528,46537.0,46536.0,0.49539491]
[1641235191675,1.68118528,46537.0,46536.0,0.49539491]
[1641235192080,0.85090291,46537.0,46536.0,0.49539491]
[1641235193478,0.80348929,46537.0,46536.0,0.49539491]
[1641235193678,0.8021923,46537.0,46536.0,0.49539491]
[1641235195925,0.8521923,46537.0,46536.0,0.48686191]
[1641235196226,1.45544606,46537.0,46536.0,0.32286191]
[1641235196427,1.45023636,46537.0,46536.0,0.32286191]
[1641235197231,1.45023636,46537.0,46536.0,0.33139491]
[1641235197427,2.50615375,46537.0,46536.0,0.33139491]
[1641235197879,3.00615375,46537.0,46536.0,0.33139491]
[1641235199284,2.80615375,46537.0,46536.0,0.33139491]
[1641235199683,3.00615375,46537.0,46536.0,0.33139491]
[1641235200085,2.35735375,46537.0,46536.0,0.33139491]
[1641235201085,3.00615375,46537.0,46536.0,0.33139491]
[1641235201733,3.02359375,46537.0,46536.0,0.33139491]
[1641235201928,2.72684499,46537.0,46536.0,0.33139491]
[1641235202132,3.36773861,46537.0,46536.0,0.33139491]
[1641235202334,1.36,46536.0,46535.0,0.00022]
[1641235202535,2.70590674,46536.0,46535.0,0.00011]
[1641235202735,3.87308939,46536.0,46534.0,0.0003188]
[1641235202933,3.87308939,46536.0,46534.0,0.00022]
[1641235202934,0.84655646,46535.0,46534.0,0.00022]
[1641235203132,1.09593191,46535.0,46534.0,0.00022]
[1641235203333,1.18233191,46535.0,46534.0,0.00022]
[1641235203534,2.7382493,46535.0,46534.0,0.00022]
[1641235203932,2.7382493,46535.0,46534.0,0.008753]
[1641235204136,0.65,46534.0,46533.0,0.00011]
[1641235204335,1.97087712,46534.0,46532.0,0.00044]
[1641235204535,1.15092514,46533.0,46532.0,0.00044]
[1641235204735,0.89465646,46533.0,46532.0,0.017507]
[1641235204936,2.05057385,46533.0,46532.0,0.017507]
[1641235205193,2.69405385,46533.0,46532.0,0.017507]
[1641235208928,2.69405385,46533.0,46520.0,0.008509]
[1641235209131,0.64655646,46528.0,46514.0,0.00044]
[1641235209331,0.00379984,46518.0,46514.0,0.00044]
[1641235209529,0.04585646,46515.0,46514.0,0.00044]
[1641235209731,0.18155938,46515.0,46514.0,0.00044]
[1641235210730,0.18155938,46515.0,46514.0,0.017506]
[1641235212331,2.77278836,46515.0,46514.0,0.017506]
[1641235212684,3.3772882,46515.0,46514.0,0.017506]
[1641235212887,3.3772882,46515.0,46512.0,0.00044]
[1641235212888,1.57798,46514.0,46512.0,0.00044]
[1641235213079,1.04,46512.0,46511.0,0.00156]
[1641235213275,0.00112,46511.0,46509.0,0.00033]
[1641235213472,1.59055292,46510.0,46507.0,0.00022]
[1641235213676,0.83,46507.0,46502.0,0.00022]
[1641235213874,0.36,46504.0,46501.0,0.00233]
[1641235214074,1.3489863,46502.0,46501.0,0.00233]
[1641235214274,2.0405663,46502.0,46501.0,0.00211]
[1641235214477,0.05706504,46500.0,46498.0,0.00011]
[1641235214678,0.05706504,46500.0,46496.0,0.0074286]
[1641235214679,0.2,46498.0,46496.0,0.0069886]
[1641235214876,0.24448646,46497.0,46496.0,0.0069886]
[1641235215072,2.3440679,46497.0,46494.0,0.44572]
[1641235215275,2.3440679,46497.0,46489.0,0.00044]
[1641235215276,0.13,46493.0,46491.0,0.00189]
[1641235215474,0.13,46493.0,46488.0,0.00033]
[1641235215475,1.5405663,46492.0,46488.0,0.00033]
[1641235215679,0.2232863,46489.0,46488.0,0.00033]
[1641235215875,1.70367329,46489.0,46488.0,0.00033]
[1641235216073,1.50367329,46489.0,46488.0,0.00033]
[1641235216530,1.50367329,46489.0,46486.0,0.00033]
[1641235216531,0.053803,46487.0,46481.0,0.00307057]
[1641235216730,0.0232863,46484.0,46481.0,0.31037201]
[1641235216930,0.0713863,46484.0,46481.0,0.31037201]
[1641235217133,0.0713863,46484.0,46481.0,0.00307057]
[1641235218334,0.0713863,46484.0,46482.0,0.32738213]
[1641235218530,0.0713863,46484.0,46482.0,0.00033]
[1641235220034,0.0713863,46484.0,46483.0,0.4273601]
[1641235220798,0.5,46486.0,46483.0,0.4273601]
[1641235221003,0.5,46486.0,46485.0,0.09999999]
[1641235221495,0.8278474,46488.0,46486.0,0.41620202]
[1641235221697,0.64348,46489.0,46486.0,0.08956236]
[1641235221897,0.64348,46489.0,46487.0,0.21401883]
[1641235222298,0.54078,46489.0,46487.0,0.21401883]
[1641235222501,0.82904959,46497.0,46489.0,0.85]
[1641235222699,0.82904959,46497.0,46495.0,0.09999999]
[1641235222700,0.8278474,46497.0,46495.0,0.09999999]
[1641235222899,0.8278474,46497.0,46496.0,0.87698108]
[1641235223098,0.83580702,46501.0,46496.0,1.04137246]